[Event "Late-Titled-Tuesday-Blitz-June-04-2024"]
[Site "Chess.com"]
[Date "2024.06.04"]
[Round "10"]
[White "stolencandy13"]
[Black "WPWPWP-2015"]
[Result "1/2-1/2"]
[WhiteElo "2621"]
[BlackElo "2541"]
[TimeControl "180+1"]
[EndTime "15:56:01 PDT"]
[Termination "Game drawn by repetition"]

1. d4 {[%clk 0:03:00.9]} 1... Nf6 {[%clk 0:02:58.4]} 2. Bf4 {[%clk 0:03:00.6]}
2... g6 {[%clk 0:02:58]} 3. Nc3 {[%clk 0:03:00.2]} 3... d5 {[%clk 0:02:57.4]} 4.
Nf3 {[%clk 0:02:59.3]} 4... Bg7 {[%clk 0:02:57.3]} 5. Qd2 {[%clk 0:02:59.5]}
5... O-O {[%clk 0:02:57.3]} 6. O-O-O {[%clk 0:02:59.4]} 6... b5 {[%clk
0:02:56.7]} 7. Nxb5 {[%clk 0:02:57.5]} 7... Ne4 {[%clk 0:02:55.2]} 8. Qe1 {[%clk
0:02:52]} 8... c5 {[%clk 0:02:50.2]} 9. e3 {[%clk 0:02:26.1]} 9... Nc6 {[%clk
0:02:48.2]} 10. Bd3 {[%clk 0:02:18]} 10... Qb6 {[%clk 0:02:45.8]} 11. Bc7 {[%clk
0:02:09.7]} 11... Qb7 {[%clk 0:02:45.4]} 12. Bf4 {[%clk 0:01:54.4]} 12... c4
{[%clk 0:02:44.7]} 13. Nc7 {[%clk 0:01:44.3]} 13... e5 {[%clk 0:02:42.4]} 14.
Bxe4 {[%clk 0:01:40.3]} 14... dxe4 {[%clk 0:02:37.7]} 15. Nxe5 {[%clk
0:01:33.9]} 15... Bxe5 {[%clk 0:02:06.9]} 16. Bxe5 {[%clk 0:01:31.3]} 16... Nxe5
{[%clk 0:02:05.3]} 17. Nxa8 {[%clk 0:01:30]} 17... Ng4 {[%clk 0:01:53.8]} 18. h3
{[%clk 0:01:25.3]} 18... Nf6 {[%clk 0:01:53.2]} 19. Qc3 {[%clk 0:01:23.7]} 19...
Be6 {[%clk 0:01:51.2]} 20. d5 {[%clk 0:01:14.1]} 20... Nxd5 {[%clk 0:01:46.7]}
21. Qe5 {[%clk 0:01:13.1]} 21... Qxa8 {[%clk 0:01:44.5]} 22. c3 {[%clk
0:01:03.8]} 22... Nb6 {[%clk 0:01:10.2]} 23. Rd2 {[%clk 0:00:59.1]} 23... Nd7
{[%clk 0:01:01.8]} 24. Qc7 {[%clk 0:00:58.3]} 24... Qc8 {[%clk 0:00:55.6]} 25.
Qxa7 {[%clk 0:00:54.3]} 25... Nc5 {[%clk 0:00:55.4]} 26. Rhd1 {[%clk 0:00:51.2]}
26... Nd3+ {[%clk 0:00:53.7]} 27. Kb1 {[%clk 0:00:51.3]} 27... Rd8 {[%clk
0:00:50.5]} 28. f3 {[%clk 0:00:49.8]} 28... Bd5 {[%clk 0:00:43]} 29. Qe7 {[%clk
0:00:42.2]} 29... Re8 {[%clk 0:00:41.4]} 30. Qd6 {[%clk 0:00:39.8]} 30... Qc6
{[%clk 0:00:39.3]} 31. Qxc6 {[%clk 0:00:37.4]} 31... Bxc6 {[%clk 0:00:39.6]} 32.
b3 {[%clk 0:00:36.2]} 32... f5 {[%clk 0:00:33.7]} 33. bxc4 {[%clk 0:00:32.8]}
33... Kf7 {[%clk 0:00:33.7]} 34. g4 {[%clk 0:00:30.9]} 34... Ke6 {[%clk
0:00:33.5]} 35. gxf5+ {[%clk 0:00:31]} 35... gxf5 {[%clk 0:00:33.6]} 36. fxe4
{[%clk 0:00:30.7]} 36... fxe4 {[%clk 0:00:34]} 37. Ka1 {[%clk 0:00:29]} 37...
Kd6 {[%clk 0:00:33.4]} 38. Rg1 {[%clk 0:00:25.5]} 38... Re5 {[%clk 0:00:29.6]}
39. Rg7 {[%clk 0:00:23.3]} 39... h5 {[%clk 0:00:29.5]} 40. Rh7 {[%clk
0:00:22.9]} 40... Rf5 {[%clk 0:00:28.5]} 41. a4 {[%clk 0:00:20.7]} 41... Kc5
{[%clk 0:00:27.9]} 42. Ka2 {[%clk 0:00:19.8]} 42... Bxa4 {[%clk 0:00:27.1]} 43.
Ra7 {[%clk 0:00:18.9]} 43... Kxc4 {[%clk 0:00:20.2]} 44. Rxa4+ {[%clk
0:00:17.1]} 44... Kxc3 {[%clk 0:00:20.7]} 45. Rg2 {[%clk 0:00:15.1]} 45... Nc5
{[%clk 0:00:20.6]} 46. Ra5 {[%clk 0:00:13.1]} 46... Kb4 {[%clk 0:00:20.2]} 47.
Ra8 {[%clk 0:00:12.4]} 47... Re5 {[%clk 0:00:18]} 48. Rb8+ {[%clk 0:00:12.3]}
48... Kc3 {[%clk 0:00:17]} 49. Rc8 {[%clk 0:00:12.5]} 49... Kd3 {[%clk
0:00:16.6]} 50. h4 {[%clk 0:00:11.1]} 50... Kxe3 {[%clk 0:00:16]} 51. Rg5 {[%clk
0:00:11.4]} 51... Rxg5 {[%clk 0:00:14.8]} 52. hxg5 {[%clk 0:00:12.3]} 52... Ne6
{[%clk 0:00:14.7]} 53. g6 {[%clk 0:00:12.5]} 53... Kf4 {[%clk 0:00:15.2]} 54.
Re8 {[%clk 0:00:12.3]} 54... Kf5 {[%clk 0:00:15.3]} 55. Kb3 {[%clk 0:00:10]}
55... h4 {[%clk 0:00:14.3]} 56. Kc4 {[%clk 0:00:08.8]} 56... h3 {[%clk
0:00:14.4]} 57. Kd5 {[%clk 0:00:08.9]} 57... Ng7 {[%clk 0:00:11.6]} 58. Rh8
{[%clk 0:00:08]} 58... Kg4 {[%clk 0:00:10.5]} 59. Rh7 {[%clk 0:00:07.5]} 59...
Nf5 {[%clk 0:00:09.7]} 60. g7 {[%clk 0:00:07.6]} 60... Nxg7 {[%clk 0:00:08.3]}
61. Rxg7+ {[%clk 0:00:08.5]} 61... Kf3 {[%clk 0:00:08.6]} 62. Rf7+ {[%clk
0:00:08.3]} 62... Kg2 {[%clk 0:00:08.5]} 63. Kxe4 {[%clk 0:00:08.7]} 63... h2
{[%clk 0:00:08.8]} 64. Rg7+ {[%clk 0:00:09.1]} 64... Kf2 {[%clk 0:00:09.1]} 65.
Rh7 {[%clk 0:00:08.5]} 65... Kg2 {[%clk 0:00:09.5]} 66. Rg7+ {[%clk 0:00:07]}
66... Kf2 {[%clk 0:00:09.9]} 67. Rf7+ {[%clk 0:00:05.6]} 67... Kg2 {[%clk
0:00:10.3]} 68. Rg7+ {[%clk 0:00:05.2]} 1/2-1/2

[Event "Late-Titled-Tuesday-Blitz-June-04-2024"]
[Site "Chess.com"]
[Date "2024.06.04"]
[Round "10"]
[White "Chigorinetz"]
[Black "rhungaski"]
[Result "1-0"]
[WhiteElo "2563"]
[BlackElo "2614"]
[TimeControl "180+1"]
[EndTime "15:56:02 PDT"]
[Termination "Chigorinetz won by resignation"]

1. e4 {[%clk 0:03:00.9]} 1... c5 {[%clk 0:02:57.6]} 2. Nc3 {[%clk 0:02:59.7]}
2... Nc6 {[%clk 0:02:57.9]} 3. Nge2 {[%clk 0:02:59]} 3... e5 {[%clk 0:02:52]} 4.
Nd5 {[%clk 0:02:58.1]} 4... d6 {[%clk 0:02:50.5]} 5. Nec3 {[%clk 0:02:57.9]}
5... Be6 {[%clk 0:02:50.6]} 6. Bc4 {[%clk 0:02:57.6]} 6... Nf6 {[%clk
0:02:44.6]} 7. d3 {[%clk 0:02:57.6]} 7... Nd7 {[%clk 0:02:45]} 8. O-O {[%clk
0:02:55.4]} 8... Be7 {[%clk 0:02:44.2]} 9. f4 {[%clk 0:02:55.3]} 9... exf4
{[%clk 0:02:42.8]} 10. Bxf4 {[%clk 0:02:55]} 10... Nde5 {[%clk 0:02:39.3]} 11.
Nxe7 {[%clk 0:02:54]} 11... Qxe7 {[%clk 0:02:38.8]} 12. Nd5 {[%clk 0:02:54.1]}
12... Qd7 {[%clk 0:02:28.8]} 13. Bxe5 {[%clk 0:02:51]} 13... dxe5 {[%clk
0:02:14.5]} 14. Qh5 {[%clk 0:02:44.2]} 14... O-O-O {[%clk 0:01:58.7]} 15. a3
{[%clk 0:02:32.7]} 15... f6 {[%clk 0:01:48.7]} 16. b4 {[%clk 0:02:30.2]} 16...
Qd6 {[%clk 0:01:46.8]} 17. bxc5 {[%clk 0:02:25.7]} 17... Qxc5+ {[%clk
0:01:46.6]} 18. Kh1 {[%clk 0:02:25.9]} 18... Kb8 {[%clk 0:01:34.4]} 19. Rab1
{[%clk 0:02:24.8]} 19... Bc8 {[%clk 0:01:33.9]} 20. a4 {[%clk 0:02:18.5]} 20...
Qd6 {[%clk 0:01:27.4]} 21. Rb2 {[%clk 0:02:11.9]} 21... Na5 {[%clk 0:01:03.3]}
22. Ba2 {[%clk 0:02:07.8]} 22... Qa3 {[%clk 0:01:00.5]} 23. Rfb1 {[%clk
0:02:06]} 23... Qxa4 {[%clk 0:01:00.8]} 24. Qh4 {[%clk 0:01:32.4]} 24... Qd7
{[%clk 0:00:55.1]} 25. c4 {[%clk 0:01:10.1]} 25... Nc6 {[%clk 0:00:52.6]} 26. c5
{[%clk 0:01:06.1]} 26... Nd4 {[%clk 0:00:51.3]} 27. Bc4 {[%clk 0:01:05.7]} 27...
Qc6 {[%clk 0:00:47.4]} 28. Qg3 {[%clk 0:01:04.2]} 28... Rd7 {[%clk 0:00:30.4]}
29. Nb4 {[%clk 0:01:03.3]} 29... Qa4 {[%clk 0:00:20.7]} 30. Ra2 {[%clk
0:00:56.5]} 30... Ne2 {[%clk 0:00:10.5]} 31. Qe1 {[%clk 0:00:41.7]} 31... Qxa2
{[%clk 0:00:04.6]} 32. Bxa2 {[%clk 0:00:29.7]} 32... Nd4 {[%clk 0:00:05.5]} 33.
c6 {[%clk 0:00:28.8]} 33... Re7 {[%clk 0:00:06.1]} 34. cxb7 {[%clk 0:00:26.6]}
34... Rxb7 {[%clk 0:00:07]} 35. Bd5 {[%clk 0:00:24.8]} 35... Rb6 {[%clk
0:00:06]} 36. Nc6+ {[%clk 0:00:20.1]} 36... Nxc6 {[%clk 0:00:06.4]} 37. Rxb6+
{[%clk 0:00:19.5]} 37... axb6 {[%clk 0:00:07.3]} 38. Bxc6 {[%clk 0:00:19.9]}
38... Rd8 {[%clk 0:00:08.2]} 39. Bd5 {[%clk 0:00:20]} 39... Bb7 {[%clk
0:00:06.8]} 40. Qb4 {[%clk 0:00:20.3]} 40... Bxd5 {[%clk 0:00:05.4]} 41. Qxb6+
{[%clk 0:00:20.1]} 41... Kc8 {[%clk 0:00:06.1]} 42. Qc5+ {[%clk 0:00:20.1]}
42... Kd7 {[%clk 0:00:04.4]} 43. exd5 {[%clk 0:00:20.2]} 43... Ke8 {[%clk
0:00:04.1]} 44. Qc6+ {[%clk 0:00:20.1]} 44... Ke7 {[%clk 0:00:04.3]} 45. g4
{[%clk 0:00:20.9]} 45... Rd6 {[%clk 0:00:04.9]} 46. Qc7+ {[%clk 0:00:20.8]}
46... Rd7 {[%clk 0:00:05.8]} 47. Qc5+ {[%clk 0:00:21]} 47... Kf7 {[%clk
0:00:05.7]} 48. Kg2 {[%clk 0:00:21.6]} 48... g6 {[%clk 0:00:06.3]} 49. d6 {[%clk
0:00:19.3]} 49... Ke6 {[%clk 0:00:06.4]} 50. d4 {[%clk 0:00:18.4]} 50... exd4
{[%clk 0:00:05.9]} 51. Qxd4 {[%clk 0:00:17.1]} 51... Rxd6 {[%clk 0:00:06.8]} 52.
Qa7 {[%clk 0:00:17.1]} 52... Rd7 {[%clk 0:00:06.9]} 53. Qb8 {[%clk 0:00:16.6]}
53... f5 {[%clk 0:00:04.8]} 54. g5 {[%clk 0:00:15.7]} 54... Re7 {[%clk
0:00:04.3]} 55. Qf8 {[%clk 0:00:14.7]} 55... Kd7 {[%clk 0:00:04.6]} 56. Kf3
{[%clk 0:00:14.8]} 56... Kd6 {[%clk 0:00:05]} 57. Qf6+ {[%clk 0:00:14.3]} 57...
Kd7 {[%clk 0:00:05.4]} 58. h4 {[%clk 0:00:14.7]} 58... Re6 {[%clk 0:00:06]} 59.
Qf7+ {[%clk 0:00:13.8]} 59... Re7 {[%clk 0:00:06.7]} 60. Qf8 {[%clk 0:00:14.4]}
60... Re8 {[%clk 0:00:06.5]} 61. Qh6 {[%clk 0:00:13.5]} 61... Re7 {[%clk
0:00:07]} 62. h5 {[%clk 0:00:13.8]} 62... gxh5 {[%clk 0:00:03.2]} 63. Kf4 {[%clk
0:00:14]} 63... Rf7 {[%clk 0:00:03.3]} 64. Qxh5 {[%clk 0:00:12.9]} 64... Ke7
{[%clk 0:00:03.8]} 65. Qh6 {[%clk 0:00:11.4]} 65... Kd7 {[%clk 0:00:03.3]} 66.
Ke5 {[%clk 0:00:10.6]} 66... f4 {[%clk 0:00:04.2]} 67. Qe6+ {[%clk 0:00:10.3]}
1-0

[Event "Late-Titled-Tuesday-Blitz-June-04-2024"]
[Site "Chess.com"]
[Date "2024.06.04"]
[Round "10"]
[White "glucolisis04"]
[Black "jbking07"]
[Result "0-1"]
[WhiteElo "2266"]
[BlackElo "2345"]
[TimeControl "180+1"]
[EndTime "15:56:17 PDT"]
[Termination "jbking07 won by resignation"]

1. d4 {[%clk 0:03:00.9]} 1... d5 {[%clk 0:02:59.9]} 2. c4 {[%clk 0:03:00.2]}
2... e6 {[%clk 0:03:00.3]} 3. Nc3 {[%clk 0:02:59.9]} 3... Nf6 {[%clk 0:03:00.5]}
4. cxd5 {[%clk 0:02:59.6]} 4... exd5 {[%clk 0:03:01.4]} 5. Bg5 {[%clk 0:02:59]}
5... c6 {[%clk 0:03:02]} 6. e3 {[%clk 0:02:58.8]} 6... Bd6 {[%clk 0:03:02.5]} 7.
Bd3 {[%clk 0:02:59.3]} 7... O-O {[%clk 0:03:02.9]} 8. Qc2 {[%clk 0:02:57.6]}
8... h6 {[%clk 0:03:03.2]} 9. Bh4 {[%clk 0:02:56.7]} 9... Re8 {[%clk 0:03:03.7]}
10. Nf3 {[%clk 0:02:55.2]} 10... Nbd7 {[%clk 0:02:53.8]} 11. O-O {[%clk
0:02:53.4]} 11... Nf8 {[%clk 0:02:53.5]} 12. Rab1 {[%clk 0:02:49.5]} 12... a5
{[%clk 0:02:51.3]} 13. a3 {[%clk 0:02:48.3]} 13... Bg4 {[%clk 0:02:50.2]} 14.
Bg3 {[%clk 0:02:46.1]} 14... Bh5 {[%clk 0:02:47.4]} 15. b4 {[%clk 0:02:39.8]}
15... axb4 {[%clk 0:02:45.5]} 16. axb4 {[%clk 0:02:40.5]} 16... Bg6 {[%clk
0:02:34.2]} 17. b5 {[%clk 0:02:19.1]} 17... Bxg3 {[%clk 0:02:29.2]} 18. hxg3
{[%clk 0:02:18]} 18... Bxd3 {[%clk 0:02:19.5]} 19. Qxd3 {[%clk 0:02:18.9]} 19...
Ra3 {[%clk 0:02:11.5]} 20. Qc2 {[%clk 0:02:18.1]} 20... Qa5 {[%clk 0:02:05.3]}
21. Rb3 {[%clk 0:02:09.3]} 21... N8d7 {[%clk 0:01:57.9]} 22. bxc6 {[%clk
0:01:58.2]} 22... bxc6 {[%clk 0:01:58.1]} 23. Rfb1 {[%clk 0:01:51.6]} 23... Rxb3
{[%clk 0:01:52.2]} 24. Rxb3 {[%clk 0:01:46.4]} 24... c5 {[%clk 0:01:40.4]} 25.
Rb5 {[%clk 0:01:38.3]} 25... Qa1+ {[%clk 0:01:40.2]} 26. Rb1 {[%clk 0:01:38.2]}
26... Qa5 {[%clk 0:01:25.7]} 27. Rb5 {[%clk 0:01:37.3]} 27... Qa1+ {[%clk
0:01:25.6]} 28. Rb1 {[%clk 0:01:36.6]} 28... Qa8 {[%clk 0:01:20.5]} 29. Nb5
{[%clk 0:01:33.7]} 29... Qc6 {[%clk 0:01:13.3]} 30. dxc5 {[%clk 0:01:26.3]}
30... Qxc5 {[%clk 0:01:13.4]} 31. Qxc5 {[%clk 0:01:24.2]} 31... Nxc5 {[%clk
0:01:14.3]} 32. Nbd4 {[%clk 0:01:21.9]} 32... Kf8 {[%clk 0:01:08.6]} 33. Rb5
{[%clk 0:01:02.7]} 33... Rc8 {[%clk 0:01:01]} 34. Nf5 {[%clk 0:00:43.9]} 34...
Nce4 {[%clk 0:00:59.2]} 35. Rb1 {[%clk 0:00:31.5]} 35... g6 {[%clk 0:00:55.5]}
36. N5d4 {[%clk 0:00:24.9]} 36... Ra8 {[%clk 0:00:52.4]} 37. Ne1 {[%clk
0:00:04.9]} 37... Ra2 {[%clk 0:00:50.1]} 38. Nd3 {[%clk 0:00:05.3]} 38... Ng4
{[%clk 0:00:47.9]} 39. Rb8+ {[%clk 0:00:04.6]} 39... Kg7 {[%clk 0:00:47.7]} 40.
Kf1 {[%clk 0:00:02.2]} 40... Ngxf2 {[%clk 0:00:44.1]} 41. Nxf2 {[%clk
0:00:02.8]} 41... Rxf2+ {[%clk 0:00:45]} 42. Kg1 {[%clk 0:00:02.9]} 42... Rf6
{[%clk 0:00:38.2]} 43. Rd8 {[%clk 0:00:03.1]} 43... Rd6 {[%clk 0:00:20.4]} 44.
Rxd6 {[%clk 0:00:03.3]} 44... Nxd6 {[%clk 0:00:21.3]} 45. Kf2 {[%clk 0:00:03.6]}
45... Kf6 {[%clk 0:00:21.7]} 46. Nc6 {[%clk 0:00:02.8]} 46... Ke6 {[%clk
0:00:21]} 47. Nb4 {[%clk 0:00:03.2]} 47... f5 {[%clk 0:00:20.1]} 48. Nc2 {[%clk
0:00:03.6]} 48... Ke5 {[%clk 0:00:20]} 49. Nd4 {[%clk 0:00:03.5]} 49... g5
{[%clk 0:00:19.6]} 50. Nc6+ {[%clk 0:00:03.3]} 50... Kf6 {[%clk 0:00:19.8]} 51.
Nd4 {[%clk 0:00:03.3]} 51... h5 {[%clk 0:00:20.1]} 52. Nc6 {[%clk 0:00:03.4]}
52... Ne4+ {[%clk 0:00:20.3]} 53. Kf3 {[%clk 0:00:01.1]} 53... Nd2+ {[%clk
0:00:20.6]} 54. Ke2 {[%clk 0:00:01.5]} 54... Nc4 {[%clk 0:00:21.2]} 55. Kf2
{[%clk 0:00:01.7]} 55... Ke6 {[%clk 0:00:20.5]} 56. Nb4 {[%clk 0:00:02.2]} 56...
Ke5 {[%clk 0:00:20.7]} 57. Nc2 {[%clk 0:00:02.8]} 57... Nd6 {[%clk 0:00:20.2]}
58. Nd4 {[%clk 0:00:02.9]} 58... g4 {[%clk 0:00:19.7]} 59. Nc6+ {[%clk
0:00:02.3]} 59... Ke4 {[%clk 0:00:19]} 60. Ne7 {[%clk 0:00:02.9]} 60... Nb5
{[%clk 0:00:18.7]} 61. Ng6 {[%clk 0:00:03]} 61... d4 {[%clk 0:00:19.1]} 62. exd4
{[%clk 0:00:03.1]} 62... Nxd4 {[%clk 0:00:20]} 63. Nf4 {[%clk 0:00:02.8]} 63...
Ke5 {[%clk 0:00:20.5]} 64. Nxh5 {[%clk 0:00:03]} 64... Ne6 {[%clk 0:00:20.5]}
65. Ke2 {[%clk 0:00:01.3]} 65... Ng5 {[%clk 0:00:21.4]} 66. Kf2 {[%clk
0:00:01.6]} 66... Ne4+ {[%clk 0:00:22.3]} 67. Kf1 {[%clk 0:00:02]} 67... Ke6
{[%clk 0:00:23]} 68. Ke2 {[%clk 0:00:02]} 68... Kf7 {[%clk 0:00:23.2]} 69. Ke3
{[%clk 0:00:01.6]} 69... Kg6 {[%clk 0:00:24.1]} 70. Kf4 {[%clk 0:00:01.8]} 70...
Kxh5 {[%clk 0:00:24.1]} 71. Kxf5 {[%clk 0:00:01.4]} 71... Nxg3+ {[%clk
0:00:24.5]} 72. Kf4 {[%clk 0:00:01.6]} 72... Nf1 {[%clk 0:00:24.8]} 73. g3
{[%clk 0:00:01.6]} 73... Nh2 {[%clk 0:00:23.6]} 74. Ke3 {[%clk 0:00:01.6]} 74...
Kg5 {[%clk 0:00:24.4]} 75. Ke4 {[%clk 0:00:01.8]} 75... Nf3 {[%clk 0:00:25.1]}
76. Ke3 {[%clk 0:00:02.1]} 76... Ne5 {[%clk 0:00:25.4]} 77. Ke4 {[%clk
0:00:02.6]} 77... Nf7 {[%clk 0:00:25.5]} 78. Kd5 {[%clk 0:00:02.9]} 78... Kf5
{[%clk 0:00:26.4]} 79. Kd4 {[%clk 0:00:03.2]} 79... Nd6 {[%clk 0:00:26.4]} 80.
Kd5 {[%clk 0:00:03.5]} 80... Ne4 {[%clk 0:00:27.3]} 81. Kd4 {[%clk 0:00:04]}
81... Nxg3 {[%clk 0:00:28.2]} 0-1

[Event "Late-Titled-Tuesday-Blitz-June-04-2024"]
[Site "Chess.com"]
[Date "2024.06.04"]
[Round "10"]
[White "Meri-Arabidze"]
[Black "Larax"]
[Result "1/2-1/2"]
[WhiteElo "2679"]
[BlackElo "2539"]
[TimeControl "180+1"]
[EndTime "15:56:37 PDT"]
[Termination "Game drawn - insufficient material"]

1. Nf3 {[%clk 0:03:00.9]} 1... d5 {[%clk 0:02:59.3]} 2. c4 {[%clk 0:03:01.4]}
2... d4 {[%clk 0:02:58.5]} 3. b4 {[%clk 0:03:01.5]} 3... c5 {[%clk 0:02:53.9]}
4. b5 {[%clk 0:03:01.4]} 4... g6 {[%clk 0:02:34.7]} 5. g3 {[%clk 0:03:01.3]}
5... Bg7 {[%clk 0:02:33.7]} 6. Bg2 {[%clk 0:03:01.8]} 6... e5 {[%clk 0:02:32.4]}
7. d3 {[%clk 0:03:02.3]} 7... Ne7 {[%clk 0:02:26.7]} 8. O-O {[%clk 0:03:02.2]}
8... O-O {[%clk 0:02:24]} 9. a4 {[%clk 0:03:02.6]} 9... Nd7 {[%clk 0:02:16.9]}
10. a5 {[%clk 0:03:02]} 10... Rb8 {[%clk 0:02:16.5]} 11. Ra2 {[%clk 0:02:54]}
11... b6 {[%clk 0:02:15.7]} 12. e3 {[%clk 0:02:45.3]} 12... dxe3 {[%clk
0:02:14.1]} 13. fxe3 {[%clk 0:02:43.5]} 13... Bb7 {[%clk 0:01:55.8]} 14. e4
{[%clk 0:02:39]} 14... Re8 {[%clk 0:01:32.6]} 15. Nc3 {[%clk 0:02:38.8]} 15...
Nf8 {[%clk 0:01:32.6]} 16. Nd5 {[%clk 0:02:34.3]} 16... h6 {[%clk 0:01:27.5]}
17. Be3 {[%clk 0:02:25]} 17... Ne6 {[%clk 0:01:26.9]} 18. Qd2 {[%clk 0:02:22.1]}
18... Kh7 {[%clk 0:01:26.1]} 19. Bh3 {[%clk 0:02:18.4]} 19... Nf8 {[%clk
0:00:29]} 20. axb6 {[%clk 0:02:11]} 20... axb6 {[%clk 0:00:28.2]} 21. Ra7 {[%clk
0:02:11.4]} 21... Ne6 {[%clk 0:00:10.3]} 22. Nh4 {[%clk 0:01:52.4]} 22... Rf8
{[%clk 0:00:07.4]} 23. Nf3 {[%clk 0:01:39.4]} 23... Nc8 {[%clk 0:00:06.7]} 24.
Ra2 {[%clk 0:01:29.8]} 24... Nd6 {[%clk 0:00:06.5]} 25. Qc1 {[%clk 0:01:22.5]}
25... Bxd5 {[%clk 0:00:05.7]} 26. exd5 {[%clk 0:01:13.6]} 26... Nd4 {[%clk
0:00:04.4]} 27. Raf2 {[%clk 0:01:12.5]} 27... f5 {[%clk 0:00:02.2]} 28. Bxd4
{[%clk 0:01:04.3]} 28... cxd4 {[%clk 0:00:02]} 29. Rd1 {[%clk 0:00:39.8]} 29...
h5 {[%clk 0:00:01.8]} 30. Ng5+ {[%clk 0:00:38.6]} 30... Kg8 {[%clk 0:00:01.7]}
31. Ne6 {[%clk 0:00:39.2]} 31... Qf6 {[%clk 0:00:01.6]} 32. Nxf8 {[%clk
0:00:37.5]} 32... Rxf8 {[%clk 0:00:02.3]} 33. c5 {[%clk 0:00:38]} 33... bxc5
{[%clk 0:00:01.8]} 34. Qxc5 {[%clk 0:00:38.9]} 34... e4 {[%clk 0:00:01.5]} 35.
Bf1 {[%clk 0:00:29.8]} 35... e3 {[%clk 0:00:01.8]} 36. Rf3 {[%clk 0:00:20.5]}
36... Rc8 {[%clk 0:00:01.7]} 37. Qb4 {[%clk 0:00:18.6]} 37... Rc2 {[%clk
0:00:02.1]} 38. b6 {[%clk 0:00:17.8]} 38... Qe7 {[%clk 0:00:02.5]} 39. Qb3
{[%clk 0:00:17.7]} 39... Rd2 {[%clk 0:00:01]} 40. Re1 {[%clk 0:00:07.8]} 40...
Bh6 {[%clk 0:00:01]} 41. h4 {[%clk 0:00:07.5]} 41... f4 {[%clk 0:00:01.1]} 42.
gxf4 {[%clk 0:00:07.1]} 42... Qxh4 {[%clk 0:00:01]} 43. Re2 {[%clk 0:00:06.4]}
43... Qg4+ {[%clk 0:00:01.2]} 44. Rg2 {[%clk 0:00:02.5]} 44... Qxf3 {[%clk
0:00:01.9]} 45. b7 {[%clk 0:00:01.8]} 45... Rxg2+ {[%clk 0:00:01]} 46. Bxg2
{[%clk 0:00:02.7]} 46... Qf2+ {[%clk 0:00:01.9]} 47. Kh1 {[%clk 0:00:03.4]}
47... Qh4+ {[%clk 0:00:02.3]} 48. Kg1 {[%clk 0:00:03.7]} 48... Qe1+ {[%clk
0:00:03.2]} 49. Kh2 {[%clk 0:00:03.7]} 49... Qh4+ {[%clk 0:00:03.4]} 50. Kg1
{[%clk 0:00:03.9]} 50... Nxb7 {[%clk 0:00:04.3]} 51. d6+ {[%clk 0:00:03.5]}
51... Kg7 {[%clk 0:00:03.7]} 52. Qxb7+ {[%clk 0:00:04.4]} 52... Kf6 {[%clk
0:00:01.8]} 53. Qf3 {[%clk 0:00:05.3]} 53... Qe1+ {[%clk 0:00:01.5]} 54. Kh2
{[%clk 0:00:06]} 54... Qh4+ {[%clk 0:00:02.1]} 55. Kg1 {[%clk 0:00:06.3]} 55...
Qe1+ {[%clk 0:00:02.5]} 56. Bf1 {[%clk 0:00:06.3]} 56... Qf2+ {[%clk 0:00:02.3]}
57. Qxf2 {[%clk 0:00:06.5]} 57... exf2+ {[%clk 0:00:03.2]} 58. Kxf2 {[%clk
0:00:07]} 58... Bxf4 {[%clk 0:00:04.1]} 59. d7 {[%clk 0:00:07.3]} 59... Ke7
{[%clk 0:00:04.6]} 60. Bh3 {[%clk 0:00:07.8]} 60... g5 {[%clk 0:00:05]} 61. Bf5
{[%clk 0:00:08]} 61... g4 {[%clk 0:00:05.1]} 62. Kg2 {[%clk 0:00:08.4]} 62...
Bc7 {[%clk 0:00:04.5]} 63. Kf2 {[%clk 0:00:08.5]} 63... Kf6 {[%clk 0:00:05]} 64.
Be4 {[%clk 0:00:07]} 64... Kg5 {[%clk 0:00:05.4]} 65. Bd5 {[%clk 0:00:03.7]}
65... h4 {[%clk 0:00:05.7]} 66. Kg2 {[%clk 0:00:04.4]} 66... Kf4 {[%clk
0:00:06.2]} 67. Kf2 {[%clk 0:00:04.3]} 67... h3 {[%clk 0:00:06]} 68. Be4 {[%clk
0:00:02]} 68... g3+ {[%clk 0:00:06.5]} 69. Kg1 {[%clk 0:00:02.4]} 69... Ke3
{[%clk 0:00:06.7]} 70. Kh1 {[%clk 0:00:02.4]} 70... g2+ {[%clk 0:00:06.6]} 71.
Kg1 {[%clk 0:00:03]} 71... Bd8 {[%clk 0:00:06.8]} 72. Bd5 {[%clk 0:00:02.6]}
72... Kxd3 {[%clk 0:00:06.8]} 73. Bf3 {[%clk 0:00:02.6]} 73... Kc3 {[%clk
0:00:07.1]} 74. Bg4 {[%clk 0:00:02.8]} 74... h2+ {[%clk 0:00:04.6]} 75. Kxh2
{[%clk 0:00:02.9]} 75... d3 {[%clk 0:00:05.2]} 76. Kxg2 {[%clk 0:00:03.4]} 76...
d2 {[%clk 0:00:06.1]} 77. Kf1 {[%clk 0:00:03.5]} 77... Kc2 {[%clk 0:00:07]} 78.
Bf3 {[%clk 0:00:03.7]} 78... d1=Q+ {[%clk 0:00:07.9]} 79. Bxd1+ {[%clk
0:00:03.9]} 79... Kxd1 {[%clk 0:00:08.8]} 80. Kf2 {[%clk 0:00:04.3]} 80... Kd2
{[%clk 0:00:09]} 81. Kf3 {[%clk 0:00:05.2]} 81... Kd3 {[%clk 0:00:09.8]} 82. Kf4
{[%clk 0:00:06.1]} 82... Kc4 {[%clk 0:00:10.7]} 83. Kf5 {[%clk 0:00:07]} 83...
Kc5 {[%clk 0:00:08.7]} 84. Ke6 {[%clk 0:00:07.9]} 84... Kc6 {[%clk 0:00:09.1]}
85. Kf7 {[%clk 0:00:08.8]} 85... Kxd7 {[%clk 0:00:09.7]} 1/2-1/2